Cogmind - Beta 9.4 *** ADVENTURER MODE // 2020.01.28 @ 23:28:33 Player: cyberbun Result: Destroyed by S-10 Pest with Light Assault Rifle Performance ------------- Evolutions (0) 0 Regions Visited (1) 200 Robots Destroyed (9) 45 Value Destroyed (314) 314 Prototype IDs (2) 40 Alien Tech Used (0) 0 Bonus (0) 0 TOTAL SCORE: 599 Bonus ------- None Cogmind --------- Core Integrity 0/250 Matter 285/300 Energy 71/100 System Corruption 0% Temperature Cool (0) Movement Core (100) Ox1 Location -10/Materials Parts ------- > --- POWER (1) -------- (None) > --- PROPULSION (2) --- (None) > --- UTILITY (2) ------ Small Storage Unit ECM Suite > --- WEAPON (2) ------- (None) > --- INVENTORY (6) ---- Hover Unit Medium Matter Pod (100) Medium Matter Pod (64) Medium Matter Pod (0) Peak State ------------ > --- POWER ------------ Light Nuclear Core > --- PROPULSION ------- Hover Unit Backup Propulsion I > --- UTILITY ---------- Small Storage Unit Terrain Scanner > --- WEAPON ----------- Light Assault Rifle Light Cannon > --- INVENTORY -------- Medium Matter Pod Medium Matter Pod Medium Matter Pod ECM Suite [Rating: 9] Favorites ----------- Power Ion Engine Engine Ion Engine Power Core Light Nuclear Core Propulsion Hover Unit Treads Light Treads Hover Unit Hover Unit Flight Unit VTOL Module Utility Small Storage Unit Device Terrain Scanner Storage Small Storage Unit Weapon Light Assault Rifle Energy Gun Medium Laser Ballistic Gun Light Assault Rifle Ballistic Cannon Light Cannon Build | -11 -10 ------- Run | Scr Mat Slots Evolved . | . . Power . | . . Propulsion . | . . Utility . | . . Weapon . | . . Parts Attached 16 | 6 10 Power 2 | 1 1 Engine 1 | 1 . Core 1 | . 1 Reactor . | . . Propulsion 8 | 2 6 Treads 2 | 2 . Leg . | . . Wheel . | . . Hover 4 | . 4 Flight 2 | . 2 Utility 3 | 1 2 Device 2 | . 2 Storage 1 | 1 . Processor . | . . Hackware . | . . Protection . | . . Artifact . | . . Weapon 3 | 2 1 Energy Gun 1 | 1 . Energy Cannon . | . . Ballistic Gun 1 | 1 . Ballistic Cannon 1 | . 1 Launcher . | . . Special Weapon . | . . Impact Weapon . | . . Slashing Weapon . | . . Piercing Weapon . | . . Special Melee Weapon . | . . Unidentified Prototypes . | . . Parts Lost 7 | . 7 Power 1 | . 1 Propulsion 2 | . 2 Utility 1 | . 1 Weapon 3 | . 3 Highest Loss Streak 6 | . 6 Average Slot Usage (%) 92 | . 92 Engine 11 | . 11 Core 2 | . 2 Hover 21 | . 21 Flight 2 | . 2 Device 11 | . 11 Storage 14 | . 14 Energy Gun 2 | . 2 Ballistic Gun 13 | . 13 Ballistic Cannon 11 | . 11 Naked Turns . | . . Heaviest Build 14 | 12 14 Greatest Support 40 | 40 40 Greatest Overweight (x) 3 | 2 3 Average Overweight (x) . | . . Largest Inventory Capacity 6 | 6 6 Average Capacity 5 | 5 6 Most Carried 6 | 5 6 Average Carried 2 | 1 2 Final Capacity 6 | 6 6 Final Carried 4 | 1 4 Class Distribution -------------------- 100% | Mutant Dominant Class ---------------- Mutant | -10/Materials Resources | -11 -10 ----------- Run | Scr Mat Matter Collected 529 | 231 298 Remotely . | . . Salvage Created 352 | . 352 Parts 14 | . 14 Haulers Intercepted . | . . Recyclers Shooed . | . . Parts Field Recycled . | . . Retrieved Matter . | . . Parts Self-Destructed . | . . Prevented . | . . Kills | -11 -10 ------- Run | Scr Mat Combat Hostiles Destroyed 8 | . 8 Guns 5 | . 5 Cannons 3 | . 3 Classes Destroyed 2 | . 2 Watcher 1 | . 1 Grunt 8 | . 8 Best Kill Streak 2 | . 2 Combat Bots Only 2 | . 2 Max Kills in Single Turn 1 | . 1 Gunslinging . | . . Exploded . | . . Melee . | . . Uniques/NPCs Destroyed . | . . Combat | -11 -10 -------- Run | Scr Mat Damage Taken 711 | . 711 Core 251 | . 251 Absorbed by Shields . | . . Core Remaining (%) 100 | 100 . Volleys Fired 31 | . 31 Largest 2 | . 2 Hottest 70 | . 70 Shots Fired 54 | . 54 Gun 42 | . 42 Cannon 12 | . 12 Launcher . | . . Special . | . . Kinetic 41 | . 41 Thermal 13 | . 13 Explosive . | . . Electromagnetic . | . . Robot Hit Streak 12 | . 12 Robot Miss Streak 1 | . 1 Penetration Max . | . . Secondary Targets 1 | . 1 Max Gunslinging Chain 1 | . 1 Shots Hit Robots 39 | . 39 Core Hits 18 | . 18 Critical Hits . | . . Critical Kills . | . . Critical Parts Destroyed . | . . Melee Attacks . | . . Impact . | . . Slashing . | . . Piercing . | . . Sneak Attacks . | . . Combat Hostiles . | . . Follow-up Attacks . | . . Damage Inflicted 458 | 1 457 Guns 313 | . 313 Cannons 123 | . 123 Explosions . | . . Melee . | . . Ramming 22 | 1 21 Kinetic 323 | . 323 Thermal 113 | . 113 Explosive . | . . Electromagnetic . | . . Impact . | . . Slashing . | . . Piercing . | . . Highest Corruption . | . . Average Corruption . | . . Corruption Purged . | . . Overload Shots . | . . Overflow Damage . | . . Projectiles . | . . Explosions . | . . Melee . | . . Knockbacks 2 | . 2 Impact . | . . Kinetic 2 | . 2 Secondary . | . . Self-Inflicted Damage 10 | . 10 Shots . | . . Rammed 6 | 1 5 Targets Rammed 6 | 1 5 Kicked . | . . Crushed . | . . Highest Temperature 280 | . 280 Average Temperature 82 | . 82 Received Heat Transfer 351 | . 351 Siege Activations . | . . Robots Corrupted . | . . Combat Hostiles . | . . Parts Fried . | . . Impact Corruptions . | . . Robots Melted . | . . Combat Hostiles . | . . Parts Melted . | . . Heat Transferred 333 | . 333 Parts Sabotaged . | . . Parts Stolen . | . . Parts Stripped . | . . Power Chain Reactions . | . . Missiles Intercepted . | . . Alert | -11 -10 ------- Run | Scr Mat Peak Influence 162 | . 162 Average Influence 56 | . 61 Maximum Alert Level . | . . Low Security (%) 100 | 100 100 Level 1 . | . . Level 2 . | . . Level 3 . | . . Level 4 . | . . Level 5 . | . . High Security . | . . Max Security . | . . Squads Dispatched 3 | . 3 Investigation 3 | . 3 Extermination . | . . Reinforcement . | . . Assault . | . . Garrison . | . . Intercept . | . . Construction Impeded . | . . Haulers Reinforced . | . . Stealth | -11 -10 --------- Run | Scr Mat Distress Signals 3 | . 3 Communications Jammed . | . . Distress Signals . | . . Times Spotted 22 | . 22 Peak Tracking Total 7 | . 7 Tactical Retreats . | . . Traps | -11 -10 ------- Run | Scr Mat Traps Triggered 1 | . 1 Indirectly . | . . Trap Hack Attempts . | . . Triggered . | . . Disarmed . | . . Reprogrammed . | . . Reused . | . . Traps Extracted . | . . Installed . | . . Triggered . | . . Machines | -11 -10 ---------- Run | Scr Mat Machines Disabled . | . . Max in Single Turn . | . . Machines Sabotaged . | . . Garrisons Compromised . | . . Overloaded Fab Kills . | . . Fab Network Shutdowns . | . . Hacking | -11 -10 --------- Run | Scr Mat Machines Accessed 5 | . 5 Terminals 3 | . 3 Fabricators . | . . Repair Stations 1 | . 1 Recycling Units 1 | . 1 Scanalyzers . | . . Garrison Access . | . . Total Hacks 32 | . 32 Successful 22 | . 22 Failed 10 | . 10 Catastrophic 2 | . 2 Database Lockouts . | . . Manual . | . . Terminals 19 | . 19 Fabricators . | . . Repair Stations 9 | . 9 Recycling Units 4 | . 4 Scanalyzers . | . . Garrison Access . | . . Terminal Hacks 13 | . 13 Record 5 | . 5 Prototype ID Bank 1 | . 1 Branch Access Points 1 | . 1 Repair Station Index 1 | . 1 Alert Level 1 | . 1 Unreport Threat 1 | . 1 Locate Traps 1 | . 1 Zone Layout 2 | . 2 Fabricator Hacks . | . . Repair Station Hacks 7 | . 7 Scan Component 3 | . 3 Repair 3 | . 3 Refit 1 | . 1 Recycling Unit Hacks 2 | . 2 Report Inventory 1 | . 1 Retrieve Matter 1 | . 1 Scanalyzer . | . . Garrison Access Hacks . | . . Unauthorized Hacks . | . . Terminals . | . . Fabricators . | . . Repair Stations . | . . Recycling Units . | . . Scanalyzers . | . . Garrison Access . | . . Data Cores Recovered . | . . Used . | . . Hacking Detections 4 | . 4 Full Trace Events 4 | . 4 Feedback Events . | . . Feedback Blocked . | . . Robot Schematics Acquired . | . . Robots Built . | . . Matter . | . . Time . | . . Total Robot Build Rating . | . . Part Schematics Acquired . | . . Parts Built . | . . Matter . | . . Time . | . . Total Part Build Rating . | . . Parts Repaired 3 | . 3 Time 78 | . 78 Parts Recycled . | . . Recycled Matter . | . . Retrieved Matter . | . . Retrieved Components . | . . Parts Scanalyzed . | . . Part Schematics Acquired . | . . Parts Damaged . | . . Bothacking | -11 -10 ------------ Run | Scr Mat Used RIF Installer . | . . Robots Hacked . | . . Non-combat . | . . Combat . | . . Robot Hacks Applied . | . . Relay Couplers Released . | . . Robots Rewired . | . . Allies Hacked . | . . Hacks Repelled . | . . Allies | -11 -10 -------- Run | Scr Mat Total Allies . | . . Largest Group . | . . Highest-Rated Group . | . . Highest-Rated Ally . | . . Total Orders . | . . Ally Attacks . | . . Total Damage . | . . Kills . | . . Allies Corrupted . | . . Allies Melted . | . . Intel | -11 -10 ------- Run | Scr Mat Robot Analysis Total . | . . Derelict Logs Recovered . | . . Drone Launches . | . . Drone Recoveries . | . . Exploration | -11 -10 ------------- Run | Scr Mat Turns Passed 1141 | 90 1051 Spaces Moved 858 | 56 802 Core 55 | 31 24 Treads 40 | 25 15 Legs . | . . Wheels . | . . Hover 706 | . 706 Flight 57 | . 57 Fastest Speed 50 | 50 56 Average Speed 117 | 134 116 Slowest Speed 240 | 160 240 Overloaded Moves . | . . Propulsion Burnouts . | . . Robots Hopped . | . . Cave-ins Triggered . | . . Exploration Rate (%) 36 | 4 69 Regions Visited 1 Branch Regions . Pre-discovered Areas . | . . Known Exits Taken . | . . Unknown Exits Taken 1 | 1 . Scrap Searched . | . . Spaces Dug . | . . Terrain Destroyed . | . . Melee . | . . Projectile . | . . AOE . | . . Actions | -11 -10 --------- Run | Scr Mat Total 943 | 70 873 Wait 2 | 1 1 Move 857 | 55 802 Hop . | . . Pick Up 21 | 7 14 Fast Attach . | . . Attach 16 | 6 10 Detach 3 | . 3 Swap . | . . Drop 7 | . 7 Fire 31 | . 31 Melee . | . . Ram 5 | . 5 Kick . | . . Crush 1 | 1 . Escape Stasis . | . . Rewire . | . . Trap . | . . Miscellaneous . | . . Route ------- -11/Scrapyard -10/Materials (discovered 2 exits: [*Mat] / *Min) History --------- Turn | Location | Event 4 | -11/Scrapyard | Discovered new exit (range 16) 91 | -11/Scrapyard | Entered Materials 319 | -10/Materials | Build established: Mutant 376 | -10/Materials | Discovered new exit (range 7) 554 | -10/Materials | Identified exit to Mines 839 | -10/Materials | Repaired Hover Unit 847 | -10/Materials | Repaired Ion Engine 873 | -10/Materials | Repaired Hover Unit? 991 | -10/Materials | Discovered new exit (range 5) 1096 | -10/Materials | Core integrity fell below 50% 1132 | -10/Materials | Core integrity fell below 20% 1142 | -10/Materials | Destroyed by S-10 Pest with Light Assault Rifle Last Messages --------------- K-01 Serf collects debris. K-01 Serf cleans the Recycling Unit. Triggered Explosive Trap. An explosion rips through the floor. U-05 Engineer lays Concrete. Hover Unit destroyed. U-05 Engineer lays Concrete. Lgt. Nuclear Core destroyed. U-05 Engineer lays Concrete. Terrain Scanner destroyed. U-05 Engineer lays Concrete. U-05 Engineer builds a Wall. U-05 Engineer lays Concrete. Lgt. Assault Rifle destroyed. U-05 Engineer lays Concrete. U-05 Engineer builds a Wall. Backup Propulsion I destroyed. Lgt. Cannon destroyed. U-05 Engineer builds a Wall. Acquired Hover Unit. Map ----- +----------------------------------------------------+ | | | | | | | | | | | ???#?????????????????????????????????????????????? | | ????????????#????????????????????????????????????? | | ########??????????????????? """ ######????????? | | # "T" #??????????????????? """ # ######???? | | + #? ????????????????? """ + #???? | | # #??????????????????? # #???? | | # !# ?????????????????? """ # ##+#####?? | | #! #????"?????????????? """ ## ## #?? | | #%"""" # ?"???????????????? """ ## ## """#?? | | # """" #??????????????????? ## ## """#?# | | # """" #?? ??"???? ??????######+### ## """#?? | | # #????? ??? #??????????# #?# ## #?? | | # """" ########### #??????????# #?# ## ##? | | # """" ## # #?#?##?????# #?# ########### | | # """" ## """ # ############ ### # | | # % ## """ # # """ | | ####+#### """ # + """ | | ## + ############ # "T" """ | | + """ # # """ #???# # """ | | ## """ # # "R" #???# ########+## | | """ ## """ # # "@" #???# ######## ## | | """ ## # # * #???# | | """ #####+##### # #???# | | ### =### # s #?#?# """"" | | ###s######## """"""""" | | ########## """ """ | | ?# ## | | ?# / ## ### """ | | ?# ! ### ##?######### """ """"" | | ?# = #?# #???? ?????# """ """"""""" | | ?# #?# #?????? ???# """ """ | | ## =#?# ##?#???????# # | | ?# #?# #??#?? ?"? # """ # | | ?# #?# #???#????"?#[ """ """"" # | | ###+####### #?##????? # """ """"""""" # | | #?????#+#+## """ """ | | #?????+ | | """ #???? # """ | | #### """"" # ??? # """ ^ ########## | | # """"" #???? # """ ^ ##??#????? | | # """"" #?????# ##??#????? | | + """ #?????# ##?????#?? | | # #? ???# ##???????? | | # #??##?# ^ ##??????#? | | # ! #?????# ########## ##???????? | +----------------------------------------------------+ Best States ------------- Heat Dissipation 25 Energy Generation 14 Energy Capacity 250 Matter Stores 300 Matter Capacity 300 Sight Range 16 Terrain Scan Range 14 Terrain Scan Density 10 ECM Strength 1 Resistance: KI 20 Resistance: TH 20 Resistance: EX 20 Resistance: EM 20 Resistance: I 20 Resistance: S 20 Resistance: P 20 Evasion (%) 53 Recoil Reduction 2 Offensive Hacking 10 Item Schematics ----------------- None Robot Schematics ------------------ None Fabricated ------------ Nothing Alien Tech Used ----------------- None Achievements -------------- Everything Is Under Control Challenges ------------ None Game ------ Seed HypercooledIntegratedFalx Manual? 0 Play Time 00:19:24 Cumulative 1.0 hours Start 2020.01.28 @ 01:38:09 End 2020.01.28 @ 23:28:33 Sessions 4 Manual Loads 0 Difficulty Adventurer Special Mode None Game No. 2 Rogue 0 Adventurer 2 Explorer 0 Win Type - Total 0 Types 0/0/0/0/0/0/0 Lore% 1 Gallery% 3 Achievement% 3 Wizard Run 0 Options --------- ASCII 0 Keyboard 0 Movement Numpad Keybinds 0 Fullscreen 0 Font 16/SmallcapsGlow Map View 76x50 Tactical HUD 0 Map Filters NONE Filters NONE Steam 1 RUN: 2b46063d-e966-41b8-91d9-87a545fa2bff